bitfinex-derivatives/quotes_BTCF0:USTF0_20260314
["timestamp","ask_amount","ask_price","bid_price","bid_amount"]
[1773504348691,0.04716676,70558.0,70529.0,0.00144]
[1773504348887,0.042516,70551.0,70537.0,0.042524]
[1773504349189,0.04860676,70550.0,70537.0,0.042524]
[1773504349383,0.00144,70549.0,70528.0,0.05474566]
[1773504349584,0.04716676,70545.0,70528.0,0.01127]
[1773504349788,0.04860676,70545.0,70528.0,0.01127]
[1773504350187,0.04860676,70545.0,70531.0,0.042527]
[1773504350188,0.09112576,70545.0,70531.0,0.042527]
[1773504351394,0.04450066,70544.0,70531.0,0.042527]
[1773504351594,0.04450066,70543.0,70530.0,0.042528]
[1773504352291,0.04450066,70543.0,70531.0,0.042527]
[1773504352493,0.00144,70545.0,70532.0,0.042527]
[1773504352892,0.04450066,70544.0,70527.0,0.0001728]
[1773504353090,0.04450066,70541.0,70529.0,0.042528]
[1773504353600,0.08702266,70541.0,70529.0,0.042528]
[1773504354999,0.042523,70540.0,70527.0,0.0427028]
[1773504357899,0.04252,70544.0,70527.0,0.0282242]
[1773504358294,0.00144,70543.0,70527.0,0.0001728]
[1773504358599,0.00144,70543.0,70528.0,0.02784544]
[1773504358801,0.042519,70546.0,70532.0,0.042527]
[1773504359099,0.00144,70542.0,70532.0,0.042527]
[1773504359397,0.00144,70542.0,70528.0,0.02784544]
[1773504359398,0.04594066,70549.0,70528.0,0.02926169]
[1773504359789,0.042519,70546.0,70533.0,0.042526]
[1773504360197,0.04252,70544.0,70531.0,0.043967]
[1773504361991,0.043957,70549.0,70536.0,0.042524]
[1773504362182,0.00144,70549.0,70531.0,0.03497091]
[1773504362382,0.00144,70549.0,70536.0,0.042524]
[1773504363497,0.00144,70549.0,70537.0,0.042524]
[1773504363696,0.00144,70549.0,70538.0,0.042523]
[1773504363894,0.00144,70551.0,70540.0,0.042522]
[1773504364287,0.00144,70551.0,70532.0,0.03371011]
[1773504364888,0.00144,70550.0,70532.0,0.03371011]
[1773504365088,0.01127,70570.0,70536.0,0.04691844]
[1773504365089,0.04450066,70569.0,70536.0,0.04691844]
[1773504365288,0.01127,70570.0,70531.0,0.00144]
[1773504365289,0.042512,70557.0,70544.0,0.042519]
[1773504365492,0.04251,70561.0,70547.0,0.042518]
[1773504365698,0.04450066,70567.0,70545.0,0.04691844]
[1773504365699,0.00144,70560.0,70545.0,0.04691844]
[1773504365899,0.00144,70559.0,70545.0,0.04691844]
[1773504366198,0.04450066,70567.0,70545.0,0.04691844]
[1773504366199,0.00144,70558.0,70548.0,0.042517]
[1773504366398,0.00144,70557.0,70548.0,0.042517]
[1773504366594,0.042509,70562.0,70548.0,0.042517]
[1773504366792,0.00144,70561.0,70548.0,0.042517]
[1773504369498,0.00144,70561.0,70549.0,0.042516]
[1773504369800,0.04450066,70567.0,70545.0,0.04691844]
[1773504370102,0.08844766,70566.0,70552.0,0.042515]
[1773504370492,0.08844766,70566.0,70553.0,0.042514]
[1773504370693,0.04251,70561.0,70547.0,0.042518]
[1773504371301,0.043951,70560.0,70547.0,0.042518]
[1773504371603,0.04594066,70560.0,70542.0,0.00144]
[1773504371904,0.042512,70557.0,70542.0,0.00144]
[1773504372493,0.042511,70559.0,70547.0,0.042518]
[1773504372799,0.00144,70560.0,70542.0,0.04835844]
[1773504374105,0.04395,70560.0,70547.0,0.042517]
[1773504374696,0.04395,70560.0,70546.0,0.042518]
[1773504375712,0.04395,70560.0,70542.0,0.04835844]
[1773504376411,0.042511,70559.0,70542.0,0.04835844]
[1773504376611,0.00144,70560.0,70547.0,0.042518]
[1773504377311,0.04395,70560.0,70547.0,0.042518]
[1773504378422,0.00144,70560.0,70550.0,0.07420214]
[1773504378823,0.00144,70560.0,70547.0,0.04691844]
[1773504380024,0.00144,70560.0,70549.0,0.042516]
[1773504381928,0.00144,70560.0,70550.0,0.042516]
[1773504386222,0.00144,70563.0,70548.0,0.04606648]
[1773504386428,0.00144,70563.0,70552.0,0.042514]
[1773504386931,0.00144,70562.0,70552.0,0.042514]
[1773504389627,0.00121479,70562.0,70551.0,0.04606648]
[1773504389837,0.00144,70565.0,70557.0,0.042512]
[1773504390039,0.00144,70565.0,70555.0,0.042513]
[1773504390332,0.043743,70552.0,70534.0,0.01127]
[1773504390540,0.043743,70544.0,70534.0,0.01127]
[1773504390725,0.20226771,70543.0,70534.0,0.01127]
[1773504390920,0.20082771,70542.0,70534.0,0.01127]
[1773504391126,0.20082771,70541.0,70534.0,0.01127]
[1773504391326,0.20083956,70540.0,70533.0,0.042526]
[1773504391626,0.20083956,70539.0,70533.0,0.042526]
[1773504391826,0.00144,70543.0,70533.0,0.042526]
[1773504392036,0.20083779,70542.0,70533.0,0.042526]
[1773504392221,0.20083779,70541.0,70533.0,0.042526]
[1773504392533,0.20083779,70540.0,70533.0,0.042526]
[1773504392722,0.00144,70543.0,70533.0,0.042526]
[1773504392723,0.20083779,70539.0,70533.0,0.042526]
[1773504392923,0.20083779,70538.0,70533.0,0.042526]
[1773504393130,0.00144,70543.0,70533.0,0.042526]
[1773504393429,0.20082531,70542.0,70533.0,0.042526]
[1773504393628,0.20082531,70541.0,70533.0,0.042526]
[1773504393829,0.20082531,70540.0,70533.0,0.042526]
[1773504394030,0.00144,70543.0,70533.0,0.042526]
[1773504394031,0.20082531,70539.0,70533.0,0.042526]
[1773504394229,0.20082531,70538.0,70533.0,0.042526]
[1773504394534,0.00144,70543.0,70533.0,0.042526]
[1773504394731,0.20079638,70542.0,70533.0,0.042526]
[1773504394927,0.20079638,70541.0,70534.0,0.042525]
[1773504395130,0.07420214,70560.0,70539.0,0.042522]
[1773504395131,0.00144,70551.0,70539.0,0.042522]
[1773504395432,0.00144,70550.0,70541.0,0.042521]
[1773504399240,0.042513,70556.0,70535.0,0.04750648]
[1773504399433,0.00144,70555.0,70544.0,0.042519]
[1773504400036,0.043743,70557.0,70544.0,0.042519]
[1773504400242,0.00144,70556.0,70544.0,0.042519]
[1773504401344,0.00144,70555.0,70544.0,0.042519]
[1773504402539,0.00144,70554.0,70547.0,0.042518]
[1773504402739,0.00144,70553.0,70547.0,0.042518]
[1773504403141,0.00144,70554.0,70547.0,0.042518]
[1773504404342,0.04251,70560.0,70547.0,0.042518]
[1773504404545,0.00144,70554.0,70547.0,0.042518]
[1773504406645,0.04251,70560.0,70547.0,0.042518]
[1773504406949,0.00144,70554.0,70547.0,0.042518]
[1773504407144,0.04251,70560.0,70547.0,0.042518]
[1773504407350,0.00144,70554.0,70547.0,0.042518]
[1773504412557,0.07420214,70560.0,70548.0,0.042517]
[1773504412750,0.00144,70554.0,70548.0,0.042517]
[1773504414155,0.00144,70555.0,70548.0,0.042517]
[1773504418465,0.00144,70555.0,70546.0,0.042518]
[1773504418959,0.00144,70555.0,70547.0,0.042518]
[1773504419257,0.042509,70563.0,70550.0,0.042516]
[1773504419460,0.00144,70562.0,70545.0,0.04966342]
[1773504420360,0.00144,70562.0,70550.0,0.042516]
[1773504421663,0.042505,70569.0,70548.0,0.04966342]
[1773504421863,0.00144,70568.0,70548.0,0.04966342]
[1773504422362,0.00144,70567.0,70548.0,0.04966342]
[1773504422753,0.00144,70566.0,70550.0,0.04966342]
[1773504423263,0.00144,70565.0,70550.0,0.04966342]
[1773504423957,0.00144,70565.0,70554.0,0.042513]
[1773504424164,0.00144,70564.0,70554.0,0.042513]
[1773504424559,0.042506,70568.0,70554.0,0.042513]
[1773504424758,0.00144,70563.0,70554.0,0.042513]
[1773504425765,0.042506,70568.0,70554.0,0.042513]
[1773504425966,0.00144,70567.0,70554.0,0.042513]
[1773504426373,0.042506,70568.0,70554.0,0.042513]
[1773504426374,0.00144,70566.0,70554.0,0.042513]
[1773504426775,0.042506,70568.0,70554.0,0.042513]
[1773504426971,0.00144,70567.0,70554.0,0.042513]
[1773504427273,0.042506,70568.0,70554.0,0.042513]
[1773504427474,0.00144,70567.0,70554.0,0.042513]
[1773504427874,0.00144,70566.0,70554.0,0.042513]
[1773504428075,0.00144,70566.0,70555.0,0.042513]
[1773504428271,0.042506,70568.0,70555.0,0.042513]
[1773504428469,0.04780264,70583.0,70550.0,0.07419431]
[1773504428669,0.00144,70582.0,70562.0,0.04966342]
[1773504428977,0.04780264,70583.0,70562.0,0.04966342]
[1773504429172,0.04780264,70579.0,70562.0,0.042509]
[1773504429374,0.04780264,70571.0,70559.0,0.04037699]
[1773504429580,0.09030864,70567.0,70551.0,0.00144]
[1773504430670,0.00144,70570.0,70552.0,0.042515]
[1773504430671,0.04780264,70569.0,70552.0,0.042515]
[1773504430871,0.09030964,70566.0,70553.0,0.042514]
[1773504431771,0.04780264,70566.0,70553.0,0.042514]
[1773504432877,0.04780264,70566.0,70554.0,0.042513]
[1773504435578,0.01271,70570.0,70554.0,0.042513]
[1773504435579,0.01127,70570.0,70554.0,0.04966342]
[1773504435880,0.01127,70570.0,70560.0,0.07419431]
[1773504436079,0.01127,70570.0,70562.0,0.042509]
[1773504436881,0.01271,70570.0,70562.0,0.042509]
[1773504439883,0.01127,70570.0,70562.0,0.042509]
[1773504440085,0.01271,70570.0,70562.0,0.042509]
[1773504440387,0.04780264,70580.0,70559.0,0.04966342]
[1773504440587,0.042499,70579.0,70565.0,0.042507]
[1773504440789,0.00144,70578.0,70565.0,0.042507]
[1773504441288,0.00144,70577.0,70565.0,0.042507]
[1773504441486,0.00144,70577.0,70566.0,0.042506]
[1773504441875,0.04686181,70585.0,70561.0,0.04614168]
[1773504442076,0.042496,70584.0,70571.0,0.042503]
[1773504442284,0.00144,70583.0,70571.0,0.042503]
[1773504442884,0.042496,70584.0,70571.0,0.042503]
[1773504443087,0.00144,70583.0,70571.0,0.042503]
[1773504443384,0.08935881,70582.0,70568.0,0.042505]
[1773504443589,0.042498,70581.0,70568.0,0.042505]
[1773504443887,0.01126,70579.0,70568.0,0.042505]
[1773504444186,0.04686181,70578.0,70561.0,0.042509]
[1773504444692,0.08936281,70575.0,70562.0,0.042509]
[1773504444886,0.00144,70574.0,70562.0,0.042509]
[1773504445589,0.042504,70570.0,70557.0,0.042512]
[1773504445797,0.04686181,70567.0,70556.0,0.01127]
[1773504446182,0.04830181,70566.0,70556.0,0.01127]
[1773504446677,0.04686181,70565.0,70556.0,0.01127]
[1773504446985,0.04686181,70565.0,70555.0,0.042513]
[1773504447191,0.00144,70566.0,70555.0,0.042513]
[1773504447389,0.00144,70566.0,70548.0,0.00144]
[1773504447390,0.042504,70570.0,70558.0,0.042511]
[1773504447586,0.00144,70569.0,70558.0,0.042511]
[1773504447791,0.04830181,70569.0,70556.0,0.042512]
[1773504448884,0.04830181,70569.0,70550.0,0.042516]
[1773504448885,0.042505,70568.0,70550.0,0.042516]
[1773504449090,0.042505,70568.0,70555.0,0.042513]
[1773504450396,0.00144,70569.0,70549.0,0.04614168]
[1773504450598,0.01127,70570.0,70558.0,0.042511]
[1773504450899,0.00144,70568.0,70558.0,0.042511]
[1773504451196,0.00144,70567.0,70558.0,0.042511]
[1773504451694,0.00144,70566.0,70558.0,0.042511]
[1773504452096,0.01127,70570.0,70558.0,0.042511]
[1773504452298,0.00144,70569.0,70558.0,0.042511]
[1773504452597,0.01127,70570.0,70558.0,0.042511]
[1773504452797,0.00144,70568.0,70558.0,0.042511]
[1773504453196,0.01127,70570.0,70558.0,0.042511]
[1773504453393,0.00144,70567.0,70558.0,0.042511]
[1773504453596,0.0107166,70570.0,70557.0,0.07419431]
[1773504453897,0.0107166,70570.0,70558.0,0.04614168]
[1773504454294,0.00144,70575.0,70562.0,0.04614168]
[1773504454494,0.00144,70576.0,70569.0,0.042504]
[1773504454693,0.00144,70577.0,70569.0,0.042504]
[1773504454895,0.042498,70581.0,70567.0,0.042506]
[1773504455099,0.00144,70580.0,70567.0,0.042506]
[1773504456807,0.042498,70581.0,70569.0,0.042504]
[1773504457107,0.00144,70580.0,70569.0,0.042504]
[1773504457696,0.00144,70579.0,70569.0,0.042504]
[1773504458297,0.00144,70578.0,70569.0,0.042504]
[1773504458803,0.00144,70577.0,70569.0,0.042504]
[1773504459206,0.01126,70580.0,70569.0,0.042504]
[1773504459401,0.00144,70576.0,70569.0,0.042504]
[1773504460407,0.00144,70575.0,70569.0,0.042504]
[1773504461206,0.01126,70580.0,70562.0,0.04614168]
[1773504461610,0.01126,70580.0,70570.0,0.042504]
[1773504462306,0.00144,70579.0,70570.0,0.042504]
[1773504462507,0.01126,70580.0,70565.0,0.04614168]
[1773504462709,0.0127,70580.0,70565.0,0.04614168]
[1773504463609,0.0127,70580.0,70570.0,0.042504]
[1773504465913,0.0127,70580.0,70565.0,0.04614168]
[1773504466113,0.042496,70584.0,70572.0,0.042502]
[1773504466114,0.00144,70581.0,70572.0,0.042502]
[1773504467914,0.00144,70581.0,70561.0,0.01127]
[1773504467915,0.00144,70581.0,70570.0,0.042504]
[1773504468114,0.04830181,70581.0,70570.0,0.042504]
[1773504468412,0.0127,70581.0,70570.0,0.042504]
[1773504468998,0.01126,70581.0,70570.0,0.042504]
[1773504469203,0.00144,70580.0,70570.0,0.042504]
[1773504472617,0.00144,70580.0,70571.0,0.042503]
[1773504473117,0.04717256,70591.0,70571.0,0.04803311]
[1773504473415,0.042494,70588.0,70571.0,0.04803311]
[1773504474613,0.053754,70588.0,70571.0,0.04803311]
[1773504475112,0.042494,70587.0,70574.0,0.042501]
[1773504478119,0.00144,70586.0,70574.0,0.042501]
[1773504478318,0.00144,70586.0,70575.0,0.042501]
[1773504479621,0.00144,70586.0,70571.0,0.04803311]
[1773504479622,0.01126,70588.0,70571.0,0.04803311]
[1773504479822,0.01126,70588.0,70578.0,0.042499]
[1773504480121,0.00144,70591.0,70575.0,0.04803311]
[1773504480122,0.043932,70591.0,70579.0,0.042498]
[1773504480319,0.043929,70595.0,70581.0,0.042497]
[1773504480520,0.00144,70595.0,70581.0,0.042497]
[1773504480917,0.04717256,70599.0,70581.0,0.042497]
[1773504481119,0.00144,70594.0,70581.0,0.042497]
[1773504482117,0.0127,70594.0,70579.0,0.042498]
[1773504483219,0.042491,70592.0,70579.0,0.042498]
[1773504483526,0.042491,70592.0,70575.0,0.04803311]
[1773504483527,0.00144,70591.0,70575.0,0.04803311]
[1773504483723,0.00144,70591.0,70580.0,0.12222742]
[1773504483916,0.00144,70591.0,70582.0,0.042496]
[1773504484115,0.00144,70590.0,70582.0,0.042496]
[1773504485022,0.00144,70590.0,70573.0,0.01127]
[1773504485227,0.04717256,70589.0,70573.0,0.01127]
[1773504485619,0.08966556,70589.0,70577.0,0.042499]
[1773504486216,0.04717256,70589.0,70577.0,0.042499]
[1773504486924,0.04717256,70600.0,70573.0,0.05930311]
[1773504487125,0.04717256,70600.0,70570.0,0.07419431]
[1773504487126,0.042487,70599.0,70586.0,0.042494]
[1773504487336,0.31184,70624.0,70589.0,0.07419431]
[1773504487337,0.04717256,70612.0,70589.0,0.07419431]
[1773504487529,0.04717256,70610.0,70589.0,0.04803311]
[1773504487822,0.03462966,70626.0,70589.0,0.04803311]
[1773504488026,0.08965456,70608.0,70595.0,0.042488]
[1773504488225,0.04861256,70608.0,70592.0,0.04249]
[1773504488426,0.04717256,70604.0,70592.0,0.04249]
[1773504488823,0.04717256,70604.0,70591.0,0.00144]
[1773504488824,0.01126,70607.0,70596.0,0.042488]
[1773504489226,0.04717256,70606.0,70586.0,0.01126]
[1773504489418,0.04717256,70603.0,70591.0,0.042491]
[1773504489620,0.01126,70607.0,70587.0,0.04803311]
[1773504490027,0.053742,70607.0,70587.0,0.04803311]
[1773504491030,0.053742,70607.0,70593.0,0.04249]
[1773504491420,0.042483,70605.0,70593.0,0.04249]
[1773504491625,0.01126,70607.0,70592.0,0.04249]
[1773504491826,0.05843256,70607.0,70592.0,0.04249]
[1773504492023,0.042483,70605.0,70592.0,0.04249]
[1773504492227,0.04717256,70604.0,70592.0,0.04249]
[1773504494525,0.042483,70605.0,70592.0,0.04249]
[1773504497028,0.05843256,70607.0,70586.0,0.01126]
[1773504497229,0.05843256,70607.0,70591.0,0.042491]
[1773504497230,0.04717256,70602.0,70591.0,0.042491]
[1773504498029,0.04717256,70602.0,70592.0,0.042491]
[1773504498331,0.00144,70601.0,70592.0,0.042491]
[1773504504436,0.00144,70601.0,70593.0,0.04249]
[1773504504836,0.00072995,70601.0,70588.0,0.04375287]
[1773504505029,0.04345658,70617.0,70598.0,0.04375287]
[1773504505225,0.042463,70639.0,70601.0,0.04375287]
[1773504505226,0.00144,70616.0,70601.0,0.04375287]
[1773504505424,0.00144,70617.0,70601.0,0.04375287]
[1773504505633,0.00144,70617.0,70603.0,0.04375287]
[1773504506030,0.00144,70617.0,70609.0,0.042481]
[1773504506229,0.00144,70617.0,70602.0,0.00144]
[1773504506230,0.00144,70625.0,70610.0,0.04375287]
[1773504506431,0.00144,70625.0,70615.0,0.042477]
[1773504506836,0.00144,70624.0,70615.0,0.042477]
[1773504507037,0.01126,70623.0,70615.0,0.042477]
[1773504507742,0.00144,70624.0,70615.0,0.042477]
[1773504508138,0.00144,70623.0,70615.0,0.042477]
[1773504508533,0.00144,70622.0,70615.0,0.042477]
[1773504509840,0.00144,70622.0,70616.0,0.042476]
[1773504510943,0.042469,70629.0,70616.0,0.042476]
[1773504511139,0.00144,70624.0,70616.0,0.042476]
[1773504512044,0.01126,70635.0,70615.0,0.04375287]
[1773504512242,0.00144,70633.0,70621.0,0.04375287]
[1773504515947,0.01126,70635.0,70610.0,0.07411035]
[1773504516148,0.04345658,70626.0,70609.0,0.04248]
[1773504516342,0.04489658,70625.0,70611.0,0.042479]
[1773504516538,0.04345658,70624.0,70601.0,0.04375287]
[1773504516743,0.08592958,70622.0,70601.0,0.04375287]
[1773504517047,0.042474,70620.0,70607.0,0.042481]
[1773504517445,0.00144,70625.0,70601.0,0.04375287]
[1773504517642,0.00144,70625.0,70599.0,0.00144]
[1773504517643,0.04345658,70634.0,70615.0,0.07411035]
[1773504517846,0.042467,70632.0,70620.0,0.07411035]
[1773504518045,0.042467,70632.0,70619.0,0.042474]
[1773504518343,0.00144,70631.0,70620.0,0.042473]
[1773504518744,0.053725,70635.0,70620.0,0.042473]
[1773504518946,0.00144,70630.0,70620.0,0.042473]
[1773504519351,0.00144,70629.0,70620.0,0.042473]
[1773504519647,0.053725,70635.0,70615.0,0.04375287]
[1773504519851,0.043906,70634.0,70619.0,0.042474]
[1773504520155,0.042467,70633.0,70619.0,0.042474]
[1773504520451,0.042467,70632.0,70619.0,0.042474]
[1773504521549,0.053725,70635.0,70622.0,0.042472]
[1773504522049,0.00144,70634.0,70622.0,0.042472]
[1773504522452,0.00144,70633.0,70622.0,0.042472]
[1773504522644,0.042465,70635.0,70622.0,0.042473]
[1773504523045,0.00144,70634.0,70622.0,0.042473]
[1773504523352,0.042465,70635.0,70622.0,0.042473]
[1773504523553,0.00144,70634.0,70622.0,0.042473]
[1773504524054,0.00144,70633.0,70622.0,0.042473]
[1773504524453,0.00144,70632.0,70622.0,0.042473]
[1773504524642,0.04345658,70640.0,70621.0,0.04375287]
[1773504524643,0.00144,70634.0,70621.0,0.04375287]
[1773504524846,0.00144,70634.0,70627.0,0.042469]
[1773504525756,0.042463,70639.0,70627.0,0.042469]
[1773504525948,0.00144,70638.0,70627.0,0.042469]
[1773504527350,0.00144,70637.0,70627.0,0.042469]
[1773504528856,0.01126,70643.0,70627.0,0.042469]
[1773504528857,0.01126,70643.0,70627.0,0.04375287]
[1773504530150,0.01126,70643.0,70632.0,0.042467]
[1773504530853,0.00144,70644.0,70632.0,0.042467]
[1773504532652,0.00144,70644.0,70633.0,0.042466]
[1773504532849,0.00144,70644.0,70630.0,0.07411035]
[1773504533044,0.00144,70645.0,70630.0,0.11887677]
[1773504533950,0.00144,70645.0,70635.0,0.042464]
[1773504534655,0.00144,70645.0,70636.0,0.042464]
[1773504536355,0.05,70650.0,70641.0,0.042461]
[1773504537148,0.00144,70655.0,70641.0,0.04476642]
[1773504537651,0.042451,70659.0,70646.0,0.042458]
[1773504537843,0.03552372,70671.0,70640.0,0.07411035]
[1773504537844,0.42248231,70678.0,70647.0,0.04476642]
[1773504538048,0.042448,70664.0,70650.0,0.042455]
[1773504538357,0.00144,70663.0,70650.0,0.042455]
[1773504539149,0.043889,70663.0,70650.0,0.08722142]
[1773504539551,0.042449,70663.0,70651.0,0.04476642]
[1773504540155,0.042449,70662.0,70651.0,0.04476642]
[1773504540656,0.042449,70662.0,70648.0,0.042457]
[1773504540657,0.04245,70661.0,70648.0,0.042457]
[1773504542956,0.04245,70661.0,70648.0,0.08722342]
[1773504544759,0.00144,70660.0,70648.0,0.08722342]
[1773504544959,0.00144,70660.0,70647.0,0.04476642]
[1773504545360,0.042448,70663.0,70647.0,0.04476642]
[1773504545559,0.00144,70662.0,70647.0,0.04476642]
[1773504545860,0.042448,70663.0,70647.0,0.04476642]
[1773504546060,0.00144,70662.0,70647.0,0.04476642]
[1773504546956,0.00144,70662.0,70649.0,0.042456]
[1773504547158,0.00144,70662.0,70636.0,0.04476642]
[1773504547347,0.00144,70662.0,70646.0,0.042458]
[1773504548260,0.042451,70659.0,70647.0,0.042457]
[1773504552664,0.042452,70658.0,70645.0,0.043859]
[1773504554557,0.042452,70658.0,70646.0,0.042458]
[1773504557065,0.042452,70658.0,70647.0,0.119]
[1773504558172,0.00144,70662.0,70647.0,0.119]
[1773504558471,0.00144,70662.0,70647.0,0.16376642]
[1773504558666,0.00144,70662.0,70642.0,0.0014]
[1773504558977,0.043889,70662.0,70649.0,0.042456]
[1773504559160,0.043889,70662.0,70650.0,0.042456]
[1773504559362,0.053695,70668.0,70651.0,0.04476642]
[1773504559568,0.0014,70667.0,70651.0,0.04476642]
[1773504559868,0.0014,70666.0,70651.0,0.04476642]
[1773504560465,0.0014,70665.0,70651.0,0.04476642]
[1773504560861,0.0014,70669.0,70650.0,0.07400128]
[1773504561067,0.0612569,70680.0,70660.0,0.04476642]
[1773504561068,0.042438,70680.0,70660.0,0.04476642]
[1773504561265,0.042439,70679.0,70666.0,0.04554302]
[1773504562274,0.001,70680.0,70669.0,0.042444]
[1773504562466,0.001,70680.0,70668.0,0.04554302]
[1773504562780,0.0014,70684.0,70668.0,0.04554302]
[1773504562781,0.0431454,70681.0,70668.0,0.04554302]
[1773504563766,0.0014,70680.0,70668.0,0.04554302]
[1773504566076,0.0431454,70681.0,70668.0,0.04554302]
[1773504566277,0.0445454,70681.0,70668.0,0.04554302]
[1773504566870,0.0014,70680.0,70668.0,0.04554302]
[1773504567273,0.0014,70680.0,70669.0,0.042444]
[1773504567481,0.0014,70680.0,70670.0,0.04554302]
[1773504570581,0.07540128,70680.0,70661.0,0.042449]
[1773504570782,0.04517569,70679.0,70661.0,0.042449]
[1773504570982,0.042441,70675.0,70662.0,0.042448]
[1773504571883,0.04517569,70679.0,70660.0,0.04385]
[1773504572681,0.042441,70675.0,70661.0,0.042449]
[1773504572879,0.042442,70674.0,70661.0,0.042449]
[1773504574274,0.04517569,70679.0,70657.0,0.04554302]
[1773504574474,0.04517569,70679.0,70657.0,0.04694302]
[1773504574980,0.042443,70672.0,70660.0,0.08799302]
[1773504576884,0.042443,70672.0,70657.0,0.0014]
[1773504577684,0.042443,70672.0,70657.0,0.04694302]
[1773504578078,0.042443,70672.0,70659.0,0.04245]
[1773504579587,0.04517569,70673.0,70655.0,0.042453]
[1773504580485,0.04517569,70673.0,70656.0,0.042452]
[1773504580486,0.042445,70669.0,70656.0,0.042452]
[1773504580783,0.0014,70668.0,70657.0,0.042451]
[1773504582576,0.0014,70668.0,70658.0,0.042451]
[1773504585288,0.0014,70668.0,70656.0,0.04554302]
[1773504585586,0.0014,70668.0,70656.0,0.0448344]
[1773504585782,0.01125,70680.0,70659.0,0.04554302]
[1773504585992,0.042441,70676.0,70662.0,0.08799102]
[1773504586181,0.042441,70675.0,70662.0,0.08799102]
[1773504586782,0.0014,70674.0,70662.0,0.08799102]
[1773504589394,0.0014,70674.0,70663.0,0.04554302]
[1773504590996,0.0014,70674.0,70664.0,0.042447]
[1773504591492,0.0014,70674.0,70665.0,0.042446]
[1773504591796,0.04244,70677.0,70665.0,0.042446]
[1773504591988,0.0014,70676.0,70665.0,0.08960731]
[1773504592183,0.01125,70680.0,70666.0,0.04716131]
[1773504592395,0.01125,70680.0,70670.0,0.12116259]
[1773504592596,0.01125,70680.0,70672.0,0.042442]
[1773504593693,0.0007074,70681.0,70671.0,0.042443]
[1773504594491,0.0021074,70681.0,70671.0,0.042443]
[1773504595292,0.0021074,70681.0,70670.0,0.04716131]
[1773504596000,0.0007074,70681.0,70670.0,0.04716131]
[1773504596194,0.0021074,70681.0,70670.0,0.04716131]
[1773504597000,0.0021074,70681.0,70670.0,0.08960531]
[1773504597502,0.0007074,70681.0,70671.0,0.042443]
[1773504597707,0.0021074,70681.0,70672.0,0.04716131]
[1773504599400,0.0021074,70681.0,70672.0,0.08960331]
[1773504599802,0.0007074,70681.0,70679.0,0.042438]
[1773504599993,0.0014,70691.0,70679.0,0.042438]
[1773504600201,0.0014,70691.0,70674.0,0.01640064]
[1773504600395,0.0014,70690.0,70674.0,0.01640064]
[1773504601211,0.0014,70690.0,70675.0,0.02673112]
[1773504601509,0.01125,70692.0,70680.0,0.042438]
[1773504602723,0.042431,70693.0,70680.0,0.042438]
[1773504603217,0.0871178,70693.0,70680.0,0.042438]
[1773504604708,0.0446868,70686.0,70661.0,0.02455374]
[1773504605018,0.042436,70684.0,70672.0,0.042442]
[1773504605217,0.0885218,70686.0,70672.0,0.042442]
[1773504605420,0.0885218,70686.0,70673.0,0.042442]
[1773504605920,0.042436,70684.0,70668.0,0.0014]
[1773504606415,0.042436,70684.0,70671.0,0.042443]
[1773504607823,0.042436,70684.0,70672.0,0.042442]
[1773504613328,0.0460868,70686.0,70670.0,0.042444]
[1773504614322,0.042437,70681.0,70668.0,0.042445]
[1773504614522,0.0871238,70681.0,70668.0,0.042445]
[1773504615012,0.0446868,70681.0,70670.0,0.042444]
[1773504615212,0.042436,70683.0,70670.0,0.042444]
[1773504615423,0.0014,70682.0,70670.0,0.042444]
[1773504615623,0.0014,70682.0,70666.0,0.0014]
[1773504615816,0.0014,70682.0,70670.0,0.1211136]
[1773504616520,0.0014,70682.0,70672.0,0.042442]
[1773504622230,0.042435,70685.0,70673.0,0.042442]
[1773504622528,0.0014,70683.0,70673.0,0.042442]
[1773504622831,0.00073786,70683.0,70673.0,0.0907243]
[1773504623132,0.0014,70683.0,70674.0,0.042441]
[1773504623734,0.0014,70683.0,70672.0,0.042442]
[1773504624029,0.0014,70683.0,70667.0,0.0014]
[1773504624224,0.0441974,70686.0,70667.0,0.0496823]
[1773504624432,0.042435,70686.0,70673.0,0.042442]
[1773504624626,0.042435,70686.0,70674.0,0.042441]
[1773504625431,0.0014,70685.0,70674.0,0.042441]
[1773504625633,0.0014,70685.0,70675.0,0.042441]
[1773504629942,0.0014,70689.0,70674.0,0.0482823]
[1773504630534,0.0014,70689.0,70670.0,0.07395229]
[1773504630737,0.0014,70689.0,70670.0,0.0482823]
[1773504630932,0.0014,70689.0,70678.0,0.042439]
[1773504631739,0.0441974,70688.0,70661.0,0.0482823]
[1773504631942,0.0441974,70688.0,70671.0,0.042443]
[1773504632945,0.042436,70685.0,70671.0,0.042443]
[1773504633543,0.042434,70686.0,70664.0,0.0482823]
[1773504634542,0.01125,70693.0,70673.0,0.0482823]
[1773504634738,0.042432,70691.0,70673.0,0.0482823]
[1773504634939,0.0866294,70691.0,70673.0,0.0482823]
[1773504635134,0.0866294,70691.0,70670.0,0.07395229]
[1773504635340,0.0866294,70691.0,70669.0,0.0482823]
[1773504635838,0.0866294,70691.0,70670.0,0.0014]
[1773504636944,0.0866294,70691.0,70679.0,0.042438]
[1773504637336,0.0441974,70691.0,70670.0,0.12363459]
[1773504637639,0.07395229,70700.0,70670.0,0.12363459]
[1773504637640,0.0014,70696.0,70681.0,0.0482823]
[1773504638148,0.042428,70697.0,70681.0,0.0482823]
[1773504638441,0.0014,70695.0,70680.0,0.07395229]
[1773504638638,0.0014,70695.0,70684.0,0.042435]
[1773504640439,0.0441974,70693.0,70679.0,0.0014]
[1773504640741,0.0014,70695.0,70684.0,0.042435]
[1773504640946,0.0014,70695.0,70685.0,0.042434]
[1773504641145,0.0014,70695.0,70686.0,0.042434]
[1773504641449,0.0014,70695.0,70687.0,0.042433]
[1773504644147,0.0014,70695.0,70685.0,0.042435]
[1773504644947,0.0014,70695.0,70683.0,0.042436]